bitfinex/quotes_ETHUSD_20240910
["timestamp","ask_amount","ask_price","bid_price","bid_amount"]
[1725952873927,1.7714,2353.1,2352.0,3.55]
[1725952874284,1.7714,2353.1,2352.1,3.24681869]
[1725952874484,1.7714,2352.9,2352.1,3.24681869]
[1725952874684,1.7714,2352.9,2352.0,3.55]
[1725952874995,1.7714,2352.9,2352.1,3.24681869]
[1725952875981,1.7714,2352.9,2352.0,3.55]
[1725952876426,1.7714,2352.9,2352.1,3.24681869]
[1725952877008,1.7714,2352.7,2352.1,3.3318397]
[1725952877385,1.7714,2352.7,2352.0,3.55]
[1725952877619,1.7714,2352.7,2351.5,0.6651705]
[1725952877620,1.7714,2352.7,2351.5,3.91198919]
[1725952877825,1.7714,2352.7,2351.5,3.24681869]
[1725952878133,1.7714,2352.7,2351.7,3.24681869]
[1725952878426,0.29509946,2352.6,2351.9,3.24681869]
[1725952879035,1.7714,2352.7,2352.0,0.08502753]
[1725952879537,1.7714,2352.7,2352.3,3.24681869]
[1725952879728,1.7714,2352.7,2352.1,3.79681869]
[1725952880048,1.7714,2352.7,2352.2,0.08501658]
[1725952880381,2.9244091,2353.0,2352.5,3.24681869]
[1725952880680,2.9244091,2353.0,2352.2,0.08501658]
[1725952880681,2.9244091,2353.0,2352.3,3.24681869]
[1725952880977,2.03725537,2353.0,2352.4,0.55]
[1725952881382,2.9244091,2353.0,2352.4,0.55]
[1725952881533,2.03725537,2353.0,2352.4,0.63500823]
[1725952881741,1.7714,2353.0,2352.4,0.63500823]
[1725952882979,1.7714,2353.0,2352.5,3.24681869]
[1725952883273,1.7714,2353.0,2352.6,0.63500313]
[1725952883637,1.7714,2353.0,2352.6,0.55]
[1725952886078,1.7714,2353.0,2352.4,0.55]
[1725952886603,1.7714,2353.0,2352.5,3.24681869]
[1725952887008,2.65855373,2353.0,2352.5,3.24681869]
[1725952888091,2.65855373,2353.0,2352.4,0.55]
[1725952888294,3.23493105,2353.0,2352.4,0.55]
[1725952889098,3.23493105,2353.0,2352.3,4.37100222]
[1725952889099,3.23493105,2353.0,2352.3,3.24681869]
[1725952889303,3.23493105,2353.0,2352.2,0.66512891]
[1725952889304,3.66123038,2352.9,2352.2,0.66512891]
[1725952889511,3.66123038,2352.9,2352.3,3.24681869]
[1725952889512,2.65855373,2352.9,2352.3,3.24681869]
[1725952889666,3.29256878,2352.9,2352.3,3.24681869]
[1725952890192,3.29256878,2352.9,2352.3,3.33183448]
[1725952890511,3.29256878,2352.9,2352.3,3.33183194]
[1725952890711,3.29256878,2352.9,2352.3,3.33183212]
[1725952890864,3.29256878,2352.9,2352.3,3.33183088]
[1725952891316,2.65855373,2352.9,2352.4,0.55]
[1725952891465,0.88715373,2352.9,2352.6,3.24681869]
[1725952891665,1.33061841,2353.1,2352.7,0.55]
[1725952891666,0.88715373,2353.1,2352.7,0.55]
[1725952891866,1.89001869,2353.1,2352.7,0.55]
[1725952892283,0.88715373,2353.1,2352.7,0.55]
[1725952892478,1.8900638,2353.1,2352.7,0.55]
[1725952892680,2.65855373,2353.2,2352.7,0.55]
[1725952892880,1.7714,2353.2,2352.8,3.99693551]
[1725952893101,1.7714,2353.2,2352.9,0.55]
[1725952893273,1.7714,2353.4,2353.0,3.24681869]
[1725952893800,2.65855373,2353.4,2353.0,3.24681869]
[1725952894225,2.65855373,2353.4,2352.9,0.55]
[1725952894226,3.23493105,2353.4,2352.9,0.55]
[1725952894528,1.46353105,2353.4,2352.7,0.66511981]
[1725952894689,3.66115561,2353.3,2352.6,10.60681869]
[1725952894889,2.65855373,2353.3,2352.7,0.55]
[1725952895078,2.65855373,2353.3,2352.7,0.63499989]
[1725952895999,2.65855373,2353.3,2352.7,0.55]
[1725952896920,2.65855373,2353.3,2352.7,0.63499991]
[1725952897083,3.05747094,2353.3,2352.8,3.24681869]
[1725952897484,3.05747094,2353.3,2352.7,0.55]
[1725952897891,3.05747094,2353.3,2352.8,0.08499873]
[1725952898183,0.88715373,2353.3,2352.9,0.55]
[1725952898381,0.88715373,2353.3,2353.0,0.08498777]
[1725952898805,0.88715373,2353.3,2353.0,3.33180646]
[1725952901356,0.88715373,2353.3,2353.1,0.55]
[1725952902443,0.88715373,2353.3,2353.2,3.33180114]
[1725952902618,0.88715373,2353.3,2353.2,4.26998125]
[1725952903646,0.88715373,2353.3,2353.2,4.1849988]
[1725952904202,0.88715373,2353.3,2353.2,0.55]
[1725952904404,1.7714,2353.5,2353.0,3.24681869]
[1725952904641,1.7714,2353.5,2353.1,0.55]
[1725952905823,1.7714,2353.5,2353.1,0.63498585]
[1725952906152,2.66855373,2354.0,2353.2,5.73771869]
[1725952906318,0.39991721,2353.9,2353.4,3.24681869]
[1725952906847,0.39991721,2353.9,2353.5,0.55]
[1725952907033,0.39991721,2353.9,2353.2,5.73771869]
[1725952907235,0.39991721,2353.9,2353.3,0.55]
[1725952907453,1.7714,2353.8,2353.3,0.55]
[1725952907655,2.07824709,2353.8,2353.3,0.55]
[1725952910769,2.07824709,2353.8,2353.2,3.24681869]
[1725952912432,1.7714,2353.8,2353.4,3.24681869]
[1725952915278,1.7714,2353.8,2353.1,2.3396]
[1725952915279,1.7714,2353.8,2353.2,3.24681869]
[1725952915462,1.7714,2353.8,2353.3,0.55]
[1725952918349,1.7714,2353.8,2353.4,3.24681869]
[1725952918747,1.7814,2354.0,2353.6,3.24681869]
[1725952919879,1.7814,2354.0,2353.5,0.55]
[1725952920046,1.7814,2354.0,2353.5,0.63496747]
[1725952920661,1.7814,2354.0,2353.6,3.24681869]
[1725952922777,1.7814,2354.0,2353.5,0.55]
[1725952922975,1.7814,2354.0,2353.6,3.33178801]
[1725952924520,1.7814,2354.0,2353.6,3.24681869]
[1725952924692,1.7814,2354.0,2353.5,0.6349675]
[1725952925488,1.7814,2354.0,2353.5,0.55]
[1725952925880,1.7814,2354.0,2353.5,0.63496747]
[1725952927503,1.7814,2354.0,2353.6,3.24681869]
[1725952928484,2.18131721,2354.0,2353.2,5.61441869]
[1725952928687,3.06847094,2354.0,2353.0,10.60681869]
[1725952928906,1.7714,2353.8,2353.1,3.0]
[1725952929223,1.7714,2353.8,2353.0,10.60681869]
[1725952929511,1.7714,2353.6,2353.0,10.60681869]
[1725952929669,2.27002841,2353.6,2353.0,10.60681869]
[1725952929865,2.27002841,2353.6,2353.2,3.24681869]
[1725952930082,2.27002841,2353.6,2353.3,0.08498401]
[1725952930083,1.7714,2353.6,2353.3,0.08498401]
[1725952930312,1.7714,2353.8,2353.4,3.24681869]
[1725952930529,1.7714,2353.8,2353.2,3.24681869]
[1725952930815,2.65855373,2353.8,2353.2,3.24681869]
[1725952930964,1.7714,2353.7,2353.2,3.24681869]
[1725952931168,2.17031721,2353.7,2353.2,3.24681869]
[1725952932102,2.17031721,2353.7,2353.0,10.60681869]
[1725952932284,3.05747094,2353.7,2353.1,0.55]
[1725952932784,1.7714,2353.5,2352.8,10.60681869]
[1725952932972,1.7714,2353.5,2352.8,3.24681869]
[1725952933168,0.26585537,2353.4,2352.8,3.24681869]
[1725952933422,1.7714,2353.3,2352.6,6.84943994]
[1725952933622,1.7714,2353.3,2352.6,3.24681869]
[1725952933773,1.7714,2353.3,2352.8,3.24681869]
[1725952934407,1.7714,2353.3,2352.6,3.24681869]
[1725952934614,2.19690275,2353.3,2352.6,3.24681869]
[1725952934773,3.08405648,2353.3,2352.6,3.24681869]
[1725952935175,1.7714,2353.2,2352.7,0.55]
[1725952935615,1.7714,2353.2,2352.6,3.24681869]
[1725952935616,2.65855373,2353.2,2352.6,3.24681869]
[1725952935915,1.7714,2353.2,2352.6,3.24681869]
[1725952936108,2.23945303,2353.2,2352.6,3.24681869]
[1725952936415,3.12660676,2353.2,2352.6,3.24681869]
[1725952937712,3.12660676,2353.2,2352.8,3.24681869]
[1725952938272,1.7714,2353.2,2352.8,3.24681869]
[1725952938538,2.65855373,2353.2,2352.8,3.24681869]
[1725952939246,0.88715373,2353.2,2352.8,3.24681869]
[1725952939446,1.31265648,2353.3,2352.8,3.24681869]
[1725952939664,2.65855373,2353.2,2352.6,3.24681869]
[1725952939812,2.65855373,2353.2,2352.7,0.55]
[1725952940708,2.65855373,2353.2,2352.6,5.04033056]
[1725952941044,1.7714,2353.2,2352.8,3.24681869]
[1725952942444,2.65855373,2353.2,2352.8,3.24681869]
[1725952943333,1.7714,2353.2,2352.8,3.24681869]
[1725952943844,1.7714,2353.2,2352.9,0.08499687]
[1725952944151,1.7714,2353.2,2352.8,3.33181122]
[1725952944304,1.7714,2353.2,2352.9,0.55]
[1725952945649,2.06384091,2353.2,2352.8,3.24681869]
[1725952945948,1.7714,2353.2,2352.8,3.24681869]
[1725952948059,1.7714,2353.2,2353.0,3.24681869]
[1725952949178,1.7714,2353.2,2352.8,3.24681869]
[1725952949470,1.7714,2353.2,2352.9,0.55]
[1725952949777,2.65855373,2353.2,2352.9,0.55]
[1725952949947,1.7714,2353.2,2352.8,3.24681869]
[1725952950484,2.65855373,2353.2,2352.8,3.24681869]
[1725952951071,2.65855373,2353.2,2352.4,14.6883]
[1725952951072,3.23493105,2353.2,2352.6,3.24681869]
[1725952951257,3.23493105,2353.2,2352.7,0.55]
[1725952951459,3.23493105,2353.2,2352.6,3.24681869]
[1725952951659,2.65855373,2353.1,2352.6,3.24681869]
[1725952952082,1.7714,2353.1,2352.6,3.24681869]
[1725952952251,1.7714,2353.1,2352.4,12.36]
[1725952952575,1.7714,2353.1,2352.8,3.24681869]
[1725952955883,0.88715373,2353.2,2352.8,3.24681869]
[1725952956083,0.88715373,2353.4,2353.0,5.58551869]
[1725952956278,1.7714,2353.4,2353.0,3.24681869]
[1725952957429,2.65855373,2353.6,2353.0,3.24681869]
[1725952957717,3.23493105,2353.6,2353.0,3.24681869]
[1725952958990,0.88715373,2353.9,2353.5,3.24681869]
[1725952959193,0.01,2354.0,2353.8,3.24681869]
[1725952960435,0.01,2354.0,2353.9,0.08495671]
[1725952960597,0.01,2354.0,2353.9,0.63495671]
[1725952960798,0.01,2354.0,2353.9,1.02313425]
[1725952961644,0.46,2354.3,2354.0,4.2688]
[1725952961844,0.88715373,2355.3,2355.1,2.2688]
[1725952962140,0.88715373,2356.0,2355.4,2.0]
[1725952962308,4.18090103,2356.2,2355.8,3.24681869]
[1725952962309,2.4063,2356.2,2355.8,3.24681869]
[1725952962507,2.86904156,2356.2,2355.8,3.24681869]
[1725952962810,2.86904156,2356.2,2355.1,2.2688]
[1725952963012,0.88715373,2356.1,2354.9,6.24681869]
[1725952963314,0.88715373,2356.1,2355.4,3.24681869]
[1725952963315,2.3808,2355.8,2355.4,3.24681869]
[1725952963511,2.3808,2355.8,2355.2,3.24681869]
[1725952963694,0.23808,2355.7,2355.2,3.24681869]
[1725952963896,0.23808,2355.7,2355.0,3.24681869]
[1725952965040,0.23808,2355.7,2354.8,3.24681869]
[1725952965334,0.23808,2355.7,2354.9,0.63491884]
[1725952965842,0.23808,2355.7,2354.9,0.55]
[1725952966136,0.23808,2355.7,2354.8,3.33173752]
[1725952967731,2.3533,2355.6,2354.8,3.24681869]
[1725952968038,0.259138,2355.5,2354.6,10.60681869]
[1725952968239,0.259138,2355.5,2355.0,3.24681869]
[1725952968417,0.259138,2355.5,2355.1,0.08491341]
[1725952968817,0.259138,2355.5,2355.0,3.3317321]
[1725952969016,0.259138,2355.5,2355.0,3.24681869]
[1725952969401,0.259138,2355.5,2354.8,3.24681869]
[1725952969601,0.259138,2355.5,2354.8,3.33173963]
[1725952969806,0.259138,2355.5,2354.8,3.24681869]
[1725952970034,0.259138,2355.5,2354.7,0.55]
[1725952973015,0.259138,2355.5,2354.8,3.24681869]
[1725952973853,0.259138,2355.5,2354.8,4.36250056]
[1725952974317,0.259138,2355.5,2354.8,4.44742437]
[1725952974512,0.259138,2355.5,2354.7,0.55]
[1725952974823,2.3533,2355.6,2354.7,0.55]
[1725952974824,2.3533,2355.6,2355.0,3.24681869]
[1725952975133,2.4205,2356.0,2355.2,3.24681869]
[1725952975763,2.4205,2356.0,2355.1,0.08491341]
[1725952975955,2.4205,2356.0,2355.0,3.24681869]
[1725952975956,2.4205,2356.0,2355.0,3.33173208]
[1725952976689,0.66509551,2356.2,2355.9,3.24681869]
[1725952976980,2.482,2357.3,2356.1,3.24681869]
[1725952977115,2.482,2357.3,2356.0,0.40956989]
[1725952977116,2.482,2357.3,2356.5,3.24681869]
[1725952977323,2.482,2357.3,2356.7,3.24681869]
[1725952977517,2.482,2357.3,2356.9,3.24681869]
[1725952977769,2.4114,2357.7,2357.1,3.24681869]
[1725952978061,2.4645,2357.3,2356.2,6.79681869]
[1725952978366,3.24681869,2357.7,2356.8,3.24681869]
[1725952978367,2.4645,2357.7,2356.8,3.24681869]
[1725952978669,2.4645,2357.7,2356.9,0.55]
[1725952979286,2.4645,2357.7,2356.8,3.24681869]
[1725952979644,2.4645,2357.7,2356.9,0.08485238]
[1725952979832,2.4645,2357.7,2356.8,3.24681869]
[1725952980362,2.4645,2357.7,2356.6,3.24681869]
[1725952980577,2.4645,2357.7,2356.7,0.08485527]
[1725952980877,2.4645,2357.7,2356.6,3.24681869]
[1725952981036,2.4645,2357.7,2356.4,5.24681869]
[1725952981239,2.4645,2357.7,2356.5,4.40330749]
[1725952981779,2.4645,2357.7,2356.6,3.24681869]
[1725952982078,2.4645,2357.7,2356.7,0.08485555]
[1725952982273,2.4645,2357.7,2356.6,3.33167424]
[1725952982633,2.3979,2357.3,2356.5,1.40330747]
[1725952982834,0.25170248,2357.2,2356.5,0.6348556]
[1725952983336,2.3979,2357.3,2356.7,3.24681869]
[1725952983537,2.3979,2357.3,2356.8,0.63484731]
[1725952984678,2.362,2357.7,2356.8,0.63484731]
[1725952985185,0.04272183,2357.3,2356.8,0.63484731]
[1725952985342,2.362,2357.7,2356.8,0.63484731]
[1725952985560,0.04272183,2357.3,2356.8,0.63484731]
[1725952985759,2.362,2357.7,2356.8,0.63484731]
[1725952985954,0.04272183,2357.3,2356.8,0.63484731]
[1725952986262,0.04272183,2357.3,2356.9,0.08484683]
[1725952986488,0.04272183,2357.3,2357.0,3.79681869]
[1725952986688,0.04272183,2357.3,2357.1,0.08483366]
[1725952986887,0.04272183,2357.3,2357.2,0.55]
[1725952987198,0.04272183,2357.3,2357.1,0.08483366]
[1725952987499,0.04272183,2357.3,2357.2,0.55]
[1725952987659,0.04272183,2357.3,2357.0,3.79681869]
[1725952987860,0.04272183,2357.3,2357.1,0.08483365]
[1725952988158,2.4916,2357.8,2357.2,0.55]
[1725952988888,2.4515,2358.2,2357.3,0.08482936]
[1725952989225,3.95,2358.6,2358.2,2.0]
[1725952989377,2.3479,2359.5,2358.8,2.0]
[1725952989378,0.66436472,2359.3,2358.8,2.0]
[1725952989701,1.699536,2360.3,2358.1,3.0]
[1725952989702,2.3679,2358.9,2358.1,3.0]
[1725952989854,0.23679,2358.8,2358.1,3.0]
[1725952990067,0.27436017,2358.8,2358.1,3.0]
[1725952990366,0.27436017,2358.8,2357.9,3.24681869]
[1725952990564,0.27436017,2358.8,2358.0,0.63480576]
[1725952990757,0.27436017,2358.8,2358.0,0.55]
[1725952991357,0.27436017,2358.8,2358.0,0.63480571]
[1725952992020,0.27436017,2358.8,2358.0,0.55]
[1725952992229,0.27436017,2358.8,2357.5,2.3275]
[1725952992230,0.27436017,2358.8,2357.5,3.24681869]
[1725952992376,2.315,2358.7,2357.4,2.0]
[1725952992575,2.2708,2358.5,2357.4,2.0]
[1725952992916,2.2708,2358.5,2357.1,2.0]
[1725952992917,3.28475125,2358.4,2357.1,2.0]
[1725952993075,0.03793256,2358.4,2357.2,3.24681869]
[1725952993479,0.03793256,2358.4,2357.1,2.0]
[1725952993480,0.03793256,2358.4,2357.4,3.24681869]
[1725952993834,2.2708,2358.5,2358.1,3.24681869]
[1725952993987,2.2708,2358.5,2358.2,0.08480168]
[1725952994186,0.03773304,2358.4,2358.2,0.08480168]
[1725952994392,2.322,2358.8,2357.8,0.08480169]
[1725952994697,0.03773483,2358.7,2357.9,0.55]
[1725952994909,0.27570831,2358.7,2358.0,0.08480233]
[1725952996141,0.23797348,2358.7,2358.0,0.08480233]
[1725952996589,0.23797348,2358.7,2358.1,0.55]
[1725952996786,3.0,2359.4,2358.2,0.08480164]
[1725952996787,2.3899,2359.1,2358.2,0.08480164]
[1725952997033,0.03773611,2358.8,2358.3,0.55]
[1725952997196,0.03773611,2358.8,2358.4,0.08479236]
[1725952997605,0.03773611,2358.8,2358.3,0.55]
[1725952997906,2.3899,2359.1,2358.1,0.08479674]
[1725952998223,0.03873462,2358.8,2358.1,0.08479674]
[1725952998719,2.3899,2359.1,2358.1,0.08479674]
[1725952999115,0.0387351,2358.8,2358.1,0.08479674]
[1725952999364,0.0387351,2358.8,2358.0,0.08480461]
[1725952999365,2.4742,2358.7,2358.0,0.08480461]
[1725952999530,0.25129351,2358.6,2358.0,0.08480461]
[1725953000124,2.465,2359.1,2358.2,3.98202107]
[1725953000322,2.465,2359.1,2358.3,0.55]
[1725953000523,0.03873694,2358.8,2358.4,0.08479148]
[1725953000728,2.465,2359.1,2358.4,0.08479148]
[1725953000927,0.03771176,2358.7,2358.4,0.08479148]
[1725953001124,0.03771233,2358.8,2358.4,0.08479148]
[1725953001329,2.465,2359.1,2358.3,0.55]
[1725953001330,0.03771118,2358.6,2358.3,0.55]
[1725953001501,0.03771118,2358.6,2358.1,2.0]
[1725953001502,2.465,2359.1,2358.2,0.63479767]
[1725953001703,3.0,2359.7,2356.8,16.42202107]
[1725953001704,0.03780558,2358.5,2357.8,2.0]
[1725953002029,2.4213,2358.6,2357.8,2.0]
[1725953002030,0.03779699,2358.4,2357.9,0.63480617]
[1725953002229,0.03779699,2358.4,2357.9,3.55]
[1725953002547,2.4213,2358.6,2358.0,0.08480549]
[1725953003103,2.3097,2358.9,2358.1,0.55]
[1725953003303,2.3097,2358.9,2358.2,0.08479754]
[1725953003610,2.3097,2358.9,2358.2,0.5464794]
[1725953003931,2.3097,2358.9,2358.2,0.08479754]
[1725953004625,0.0377036,2358.8,2358.1,0.55]
[1725953004814,0.0377036,2358.8,2358.0,0.55]
[1725953005010,2.3097,2358.9,2358.0,0.6348065]
[1725953005224,0.03770242,2358.8,2358.0,0.6348065]
[1725953005425,0.03770242,2358.8,2358.1,0.36348065]
[1725953005753,0.02,2358.9,2358.2,2.63479409]
[1725953005916,0.02,2358.9,2358.2,0.55]
[1725953006245,0.02,2358.9,2358.3,0.08479469]
[1725953006867,0.02,2358.9,2358.1,3.36348065]
[1725953007027,0.02,2358.9,2358.2,0.08480429]
[1725953007028,2.4748,2358.8,2358.2,0.08480429]
[1725953007246,0.02,2358.9,2358.3,4.8779]
[1725953007448,0.02,2358.9,2358.4,4.06679766]
[1725953007739,0.02,2358.9,2358.5,0.55]
[1725953007938,0.02,2358.9,2358.6,0.08477659]
[1725953008140,0.02,2358.9,2358.7,2.8779]
[1725953008344,0.02,2358.9,2358.8,3.0847711]
[1725953008547,0.02,2358.9,2358.8,3.6347711]
[1725953008763,0.02,2358.9,2358.8,3.55]
[1725953008903,0.02,2358.9,2358.8,3.63476219]
[1725953009106,0.02,2358.9,2358.8,4.8206363]
[1725953009358,2.4618248,2359.8,2358.9,2.0]
[1725953009657,2.4618248,2359.8,2359.0,0.55]
[1725953009807,2.4618248,2359.8,2359.0,3.55]
[1725953010005,2.4618248,2359.8,2359.1,0.08476865]
[1725953010201,2.4618248,2359.8,2359.2,0.55]
[1725953010916,2.4618248,2359.8,2359.3,0.0847636]
[1725953011246,2.4618248,2359.8,2359.3,0.08476111]
[1725953011613,2.4618248,2359.8,2359.2,0.55]
[1725953012102,2.4618248,2359.8,2359.3,0.08476148]
[1725953012301,0.1191248,2359.8,2359.7,3.98202107]
[1725953012507,3.9508,2361.4,2360.3,2.0]
[1725953012508,0.0008,2361.4,2360.3,2.0]
[1725953012808,0.0008,2361.4,2360.4,0.55]
[1725953012809,2.3767,2361.3,2360.4,0.55]
[1725953013121,2.3767,2361.3,2360.5,0.084718]
[1725953013300,0.0008,2361.4,2360.7,2.0]
[1725953013505,0.0008,2361.4,2360.8,0.63469708]
[1725953013704,0.0008,2361.4,2361.1,3.98202107]
[1725953013906,0.1191248,2362.1,2361.3,4.3296]
[1725953014158,0.1191248,2362.1,2362.0,5.98202107]
[1725953014305,0.1191248,2362.1,2362.0,8.98202107]
[1725953014543,0.1191248,2362.1,2362.0,0.55]
[1725953014936,0.1191248,2362.1,2361.8,3.63465507]
[1725953015283,0.1191248,2362.1,2362.0,3.98202107]
[1725953015502,0.1191248,2362.1,2362.0,4.53202107]
[1725953015783,0.1191248,2362.1,2362.0,0.55]
[1725953015939,0.1191248,2362.1,2361.9,0.55]
[1725953016140,0.1191248,2362.1,2361.8,3.0]
[1725953016546,0.1191248,2362.1,2361.3,3.0]
[1725953016741,0.1191248,2362.1,2361.1,5.98202107]
[1725953016941,0.37301728,2362.1,2361.1,6.85556015]
[1725953018196,0.37301728,2362.1,2360.9,0.26346971]
[1725953018405,0.37301728,2362.1,2360.8,5.98202107]
[1725953018695,0.04008626,2362.0,2360.5,8.37882107]
[1725953019051,0.04008626,2362.0,2360.8,3.98202107]
[1725953020056,0.04008626,2362.0,2360.9,0.08469913]
[1725953020287,0.04008626,2362.0,2360.9,0.49137115]
[1725953020497,0.04008626,2362.0,2361.1,3.98202107]
[1725953020703,0.37301728,2362.1,2361.2,0.08468614]
[1725953020907,0.37301728,2362.1,2361.4,3.98202107]
[1725953021404,0.37301728,2362.1,2361.5,0.08468617]
[1725953022265,0.1191248,2362.1,2361.7,3.98202107]
[1725953022572,0.03964166,2362.0,2361.8,0.08466576]
[1725953022987,0.1191248,2362.1,2361.8,0.08466576]
[1725953023507,0.1191248,2362.1,2361.6,0.08466752]
[1725953023705,0.1191248,2362.1,2361.7,0.55]
[1725953024009,0.1191248,2362.1,2361.9,2.0]
[1725953024303,0.1191248,2362.1,2362.0,0.63464722]
[1725953024797,0.1191248,2362.1,2362.0,6.97966829]
[1725953024999,0.1191248,2362.1,2362.0,9.97966829]
[1725953026375,0.1191248,2362.1,2362.0,9.97466829]
[1725953026564,0.1191248,2362.1,2362.0,11.17213512]
[1725953026760,0.1191248,2362.1,2362.0,4.74746683]
[1725953026962,0.1191248,2362.1,2362.0,0.63465353]
[1725953027561,0.1191248,2362.1,2362.0,0.08465372]
[1725953029596,0.1191248,2362.1,2362.0,0.63465372]
[1725953029923,0.1191248,2362.1,2362.0,2.9567]
[1725953030125,0.1191248,2362.1,2362.0,6.04133696]
[1725953030297,0.1191248,2362.1,2362.0,7.24367276]
[1725953030616,0.1191248,2362.1,2362.0,1.83698438]
[1725953030989,0.1191248,2362.1,2362.0,0.63464858]
[1725953031190,0.1191248,2362.1,2361.9,2.0]
[1725953031434,0.1191248,2362.1,2361.7,3.30413382]
[1725953031580,0.1191248,2362.1,2361.8,0.08466267]
[1725953032223,0.1191248,2362.1,2361.7,0.30413382]
[1725953032632,0.1191248,2362.1,2361.0,2.0]
[1725953032923,0.03731509,2362.0,2361.1,0.08468545]
[1725953033313,0.03731509,2362.0,2361.7,2.0]
[1725953033480,0.03731509,2362.0,2361.8,4.06667822]
[1725953033823,0.1191248,2362.1,2362.0,2.0]
[1725953034032,0.1191248,2362.1,2362.0,2.69131664]
[1725953034395,0.1191248,2362.1,2362.0,3.24131664]
[1725953035279,0.1191248,2362.1,2361.7,2.0]
[1725953035481,0.1191248,2362.1,2361.8,0.55]
[1725953036226,0.1191248,2362.1,2361.9,0.08466091]
[1725953036785,0.1191248,2362.1,2361.9,0.08466095]
[1725953036998,0.1191248,2362.1,2361.4,0.08466516]
[1725953037202,0.1191248,2362.1,2361.4,0.99133378]
[1725953037831,0.1191248,2362.1,2362.0,2.0]
[1725953038045,0.1191248,2364.5,2363.6,5.98202107]
[1725953038199,2.4458,2364.3,2363.0,2.0]
[1725953038409,2.4458,2364.0,2362.7,3.98202107]
[1725953038650,0.288878,2363.9,2362.8,0.68282209]
[1725953038812,0.288878,2363.9,2362.8,0.59820211]
[1725953039000,2.4458,2364.0,2363.1,3.98202107]
[1725953039205,2.2649,2364.4,2363.2,0.63461034]
[1725953039441,2.2649,2364.4,2363.3,0.08461043]
[1725953039740,2.4132,2364.0,2362.9,2.0]
[1725953039949,0.285618,2363.9,2362.9,2.0]
[1725953040301,0.285618,2363.9,2362.8,0.59820211]
[1725953040700,2.3041,2363.8,2362.6,2.0]
[1725953040935,2.3041,2363.6,2362.0,2.0]
[1725953041149,2.3041,2363.6,2361.7,0.6406852]
[1725953041150,2.3041,2363.6,2361.7,2.0]
[1725953041299,2.3041,2363.5,2362.0,2.0]
[1725953041506,2.3041,2363.5,2362.3,2.0]
[1725953041843,0.53041,2363.4,2362.4,0.08464403]
[1725953042013,2.3041,2363.5,2362.0,2.0]
[1725953042416,2.3041,2363.5,2361.7,2.0]
[1725953042853,2.3041,2363.5,2361.8,0.08465811]
[1725953043552,2.281,2363.2,2361.4,2.90666862]
[1725953043765,2.281,2363.0,2361.5,0.29066686]
[1725953043906,5.281,2363.0,2361.5,0.29066686]
[1725953044645,2.281,2362.9,2361.5,0.29066686]
[1725953045459,2.281,2362.9,2361.2,8.01008805]
[1725953045604,2.4422,2362.8,2361.1,2.0]
[1725953045802,2.4422,2362.8,2361.2,0.08468212]
[1725953046042,2.4422,2362.8,2361.2,0.54817205]
[1725953046250,2.4422,2362.8,2361.3,0.08467667]
[1725953046550,3.0,2363.0,2361.1,2.0]
[1725953046551,2.64662,2362.7,2361.1,2.0]
[1725953046851,2.4024,2362.7,2361.1,2.0]
[1725953047217,2.4024,2362.7,2361.2,0.63467744]
[1725953047453,2.4024,2362.7,2361.4,2.0]
[1725953047612,2.4024,2362.7,2361.5,0.08467422]
[1725953047962,2.4024,2362.5,2361.4,2.0]
[1725953048822,2.4024,2362.5,2361.2,0.55]
[1725953049150,2.4024,2362.5,2361.0,0.68253619]
[1725953049359,2.3586,2362.4,2361.0,0.68253619]
[1725953049530,2.3586,2362.3,2360.8,2.0]
[1725953049850,2.3586,2362.1,2360.5,2.0]
[1725953050222,2.4238,2362.0,2360.2,2.0]
[1725953050429,2.4238,2362.0,2359.9,2.0]
[1725953050430,2.4238,2361.6,2359.9,2.0]
[1725953050749,2.4238,2361.6,2360.3,0.68352256]
[1725953050908,2.4238,2361.6,2359.6,6.51358641]
[1725953050909,2.4238,2361.6,2359.8,0.68379963]
[1725953051108,2.4238,2361.4,2359.9,0.084731]
[1725953051542,2.4238,2361.4,2359.6,6.51358641]
[1725953051543,2.4589,2361.3,2359.6,6.51358641]
[1725953052017,2.4589,2361.2,2359.7,0.08473102]
[1725953052248,7.51358641,2361.3,2359.2,2.0]
[1725953052249,2.4589,2360.8,2359.2,2.0]
[1725953052465,2.4589,2360.8,2359.5,2.0]
[1725953052754,0.24589,2360.7,2359.6,0.08473999]
[1725953053125,2.4589,2360.6,2359.8,2.0]
[1725953053321,2.4589,2361.4,2359.9,4.59830851]
[1725953053712,2.4589,2361.4,2359.9,0.0847221]
[1725953054263,2.3074,2361.9,2360.3,2.0]
[1725953054459,2.3074,2361.9,2360.4,0.63471308]
[1725953054757,2.53814,2361.8,2360.5,0.26347131]
[1725953054906,2.53814,2361.8,2360.6,0.08471308]
[1725953055106,2.53814,2361.8,2360.5,0.08471308]
[1725953055523,2.53814,2361.8,2360.6,0.55]
[1725953055752,2.53814,2361.8,2360.7,0.08470409]
[1725953055907,0.253814,2361.7,2360.7,0.3481745]
[1725953056116,0.253814,2361.7,2360.8,0.08470195]
[1725953056867,0.53586,2362.2,2360.9,4.9555]
[1725953056868,2.84136,2362.2,2360.9,4.9555]
[1725953057017,2.3055,2362.2,2361.0,0.08468329]
[1725953057218,2.3055,2362.2,2361.3,2.0]
[1725953057459,2.3055,2362.2,2361.4,0.08467793]
[1725953057669,2.3055,2362.2,2361.1,0.55]
[1725953057814,0.23055,2362.1,2360.9,2.0]
[1725953058012,0.23055,2362.1,2361.0,0.63469119]
[1725953058317,2.3055,2362.2,2361.2,2.0]
[1725953058521,2.3055,2362.2,2361.3,0.08467787]
[1725953059151,2.3055,2362.2,2361.3,0.08467798]
[1725953059321,2.3055,2362.2,2361.4,0.55]
[1725953059516,2.3055,2362.2,2361.5,0.08467619]
[1725953059964,2.53605,2362.2,2361.2,2.0]
[1725953060253,2.53605,2362.2,2360.8,2.0]
[1725953060453,2.53605,2362.2,2360.9,0.55]
[1725953060659,2.53605,2362.2,2360.8,2.0]
[1725953060839,2.53605,2362.2,2361.1,2.0]
[1725953061026,0.253605,2362.1,2361.2,2.3031]